[Event "Titled Tuesday Blitz September 27 Early 2022"]
[White "Bartel, Michal"]
[Black "Visakh N R"]
[WhiteFideId "1119257"]
[BlackFideId "25012223"]
[WhiteElo "2274"]
[BlackElo "2448"]
[Result "0-1"]
[Round "08"]
[TimeControl "180+1"]
[Date "2022.09.27"]
[WhiteClock "0:01:04"]
[BlackClock "0:00:39"]

1. e4 {[%clk 0:03:00]}  c5 {[%clk 0:02:55]} 2. Ne2 {[%clk 0:03:00]}  Nc6 {[%clk 0:02:53]} 3. g3 {[%clk 0:03:01]}  g6 {[%clk 0:02:53]} 4. Bg2 {[%clk 0:03:01]}  Bg7 {[%clk 0:02:53]} 5. c3 {[%clk 0:03:02]}  e5 {[%clk 0:02:43]} 6. d3 {[%clk 0:03:02]}  Nge7 {[%clk 0:02:43]} 7. Be3 {[%clk 0:03:02]}  d6 {[%clk 0:02:43]} 8. d4 {[%clk 0:03:02]}  exd4 {[%clk 0:02:13]} 9. cxd4 {[%clk 0:03:03]}  Qb6 {[%clk 0:02:13]} 10. d5 {[%clk 0:02:48]}  Ne5 {[%clk 0:01:58]} 11. O-O {[%clk 0:02:29]}  Ng4 {[%clk 0:01:44]} 12. Bc1 {[%clk 0:02:25]}  h5 {[%clk 0:01:41]} 13. h3 {[%clk 0:02:24]}  Ne5 {[%clk 0:01:42]} 14. Nbc3 {[%clk 0:02:24]}  Bd7 {[%clk 0:01:41]} 15. b3 {[%clk 0:02:23]}  c4 {[%clk 0:01:40]} 16. Be3 {[%clk 0:02:22]}  Qa6 {[%clk 0:01:40]} 17. bxc4 {[%clk 0:02:22]}  Nxc4 {[%clk 0:01:38]} 18. Bd4 {[%clk 0:02:22]}  O-O {[%clk 0:01:36]} 19. Nf4 {[%clk 0:02:04]}  Ne5 {[%clk 0:01:33]} 20. Kh2 {[%clk 0:01:59]}  Rfc8 {[%clk 0:01:32]} 21. Nfe2 {[%clk 0:01:59]}  Qd3 {[%clk 0:00:58]} 22. f4 {[%clk 0:01:54]}  Qxd1 {[%clk 0:00:56]} 23. Rfxd1 {[%clk 0:01:54]}  Nc4 {[%clk 0:00:56]} 24. Rab1 {[%clk 0:01:53]}  b6 {[%clk 0:00:54]} 25. Nb5 {[%clk 0:01:39]}  Bxd4 {[%clk 0:00:46]} 26. Nbxd4 {[%clk 0:01:35]}  Ne3 {[%clk 0:00:44]} 27. Rd2 {[%clk 0:01:35]}  Nxg2 {[%clk 0:00:44]} 28. Kxg2 {[%clk 0:01:36]}  Rc4 {[%clk 0:00:44]} 29. Rc2 {[%clk 0:01:21]}  Rxc2 {[%clk 0:00:44]} 30. Nxc2 {[%clk 0:01:22]}  f5 {[%clk 0:00:43]} 31. e5 {[%clk 0:01:05]}  dxe5 {[%clk 0:00:43]} 32. fxe5 {[%clk 0:01:06]}  Nxd5 {[%clk 0:00:43]} 33. Rd1 {[%clk 0:01:06]}  Re8 {[%clk 0:00:41]} 34. Kh2 {[%clk 0:01:06]}  Rxe5 {[%clk 0:00:41]} 35. Nf4 {[%clk 0:01:04]}  Nxf4 {[%clk 0:00:40]} 36. Rxd7 {[%clk 0:01:04]}  Re2+ {[%clk 0:00:39]} 37. Kh1 {[%clk 0:01:04]}  Rxc2 {[%clk 0:00:39]} 0-1


[Site "https://www.chess.com"]

[Event "Titled Tuesday Blitz September 27 Early 2022"]
[White "Begunov, Konstantin"]
[Black "Thiel, Thomas"]
[WhiteFideId "4118510"]
[BlackFideId "4615964"]
[WhiteElo "2165"]
[BlackElo "2200"]
[Result "0-1"]
[Round "08"]
[TimeControl "180+1"]
[Date "2022.09.27"]
[WhiteClock "0:00:03"]
[BlackClock "0:01:57"]

1. d4 {[%clk 0:03:00]}  Nf6 {[%clk 0:02:58]} 2. c4 {[%clk 0:03:00]}  g6 {[%clk 0:02:58]} 3. f3 {[%clk 0:03:01]}  c5 {[%clk 0:02:55]} 4. dxc5 {[%clk 0:02:57]}  e6 {[%clk 0:02:53]} 5. Be3 {[%clk 0:02:16]}  Qa5+ {[%clk 0:02:49]} 6. Nc3 {[%clk 0:02:14]}  Bxc5 {[%clk 0:02:47]} 7. Bxc5 {[%clk 0:02:12]}  Qxc5 {[%clk 0:02:46]} 8. e4 {[%clk 0:02:12]}  O-O {[%clk 0:02:40]} 9. Qd2 {[%clk 0:02:08]}  d5 {[%clk 0:02:39]} 10. cxd5 {[%clk 0:01:36]}  exd5 {[%clk 0:02:40]} 11. e5 {[%clk 0:01:29]}  Nfd7 {[%clk 0:02:38]} 12. Qxd5 {[%clk 0:01:21]}  Qb4 {[%clk 0:02:28]} 13. O-O-O {[%clk 0:01:09]}  Qf4+ {[%clk 0:02:21]} 14. Kb1 {[%clk 0:00:39]}  Nxe5 {[%clk 0:02:18]} 15. g3 {[%clk 0:00:18]}  Qf5+ {[%clk 0:02:17]} 16. Ka1 {[%clk 0:00:17]}  Nbc6 {[%clk 0:02:15]} 17. f4 {[%clk 0:00:15]}  Ng4 {[%clk 0:02:13]} 18. Nh3 {[%clk 0:00:11]}  Nb4 {[%clk 0:02:08]} 19. Qxf5 {[%clk 0:00:07]}  Bxf5 {[%clk 0:02:08]} 20. a3 {[%clk 0:00:08]}  Nc2+ {[%clk 0:02:06]} 21. Ka2 {[%clk 0:00:08]}  Nce3 {[%clk 0:01:58]} 22. Bd3 {[%clk 0:00:04]}  Nxd1 {[%clk 0:01:57]} 23. Rxd1 {[%clk 0:00:03]}  Ne3 {[%clk 0:01:57]} 0-1


[Site "https://www.chess.com"]

[Event "Titled Tuesday Blitz September 27 Early 2022"]
[White "Bettalli, Francesco"]
[Black "Samarth, J Rao"]
[WhiteFideId "2816453"]
[BlackFideId "46652370"]
[WhiteElo "2216"]
[BlackElo "1514"]
[Result "1-0"]
[Round "08"]
[TimeControl "180+1"]
[Date "2022.09.27"]
[WhiteClock "0:01:39"]
[BlackClock "0:01:25"]

1. d4 {[%clk 0:03:00]}  d5 {[%clk 0:02:59]} 2. Nc3 {[%clk 0:02:49]}  Nf6 {[%clk 0:02:56]} 3. Bg5 {[%clk 0:02:49]}  Nbd7 {[%clk 0:02:56]} 4. Qd3 {[%clk 0:02:47]}  h6 {[%clk 0:02:54]} 5. Bh4 {[%clk 0:02:44]}  e6 {[%clk 0:02:54]} 6. O-O-O {[%clk 0:02:43]}  a6 {[%clk 0:02:54]} 7. e4 {[%clk 0:02:43]}  dxe4 {[%clk 0:02:52]} 8. Nxe4 {[%clk 0:02:44]}  Be7 {[%clk 0:02:52]} 9. Bg3 {[%clk 0:02:41]}  b5 {[%clk 0:02:51]} 10. Nf3 {[%clk 0:02:34]}  Bb7 {[%clk 0:02:51]} 11. Nxf6+ {[%clk 0:02:33]}  Nxf6 {[%clk 0:02:50]} 12. Be2 {[%clk 0:02:34]}  O-O {[%clk 0:02:49]} 13. Rhe1 {[%clk 0:02:33]}  Be4 {[%clk 0:02:45]} 14. Qc3 {[%clk 0:02:32]}  Nd5 {[%clk 0:02:44]} 15. Qb3 {[%clk 0:02:25]}  Rc8 {[%clk 0:02:43]} 16. Bd3 {[%clk 0:02:16]}  Bxf3 {[%clk 0:02:19]} 17. gxf3 {[%clk 0:02:15]}  c5 {[%clk 0:02:17]} 18. dxc5 {[%clk 0:02:16]}  Bxc5 {[%clk 0:02:17]} 19. Be4 {[%clk 0:02:14]}  Qg5+ {[%clk 0:02:03]} 20. Kb1 {[%clk 0:02:11]}  Rfd8 {[%clk 0:02:00]} 21. Bxd5 {[%clk 0:02:10]}  Rxd5 {[%clk 0:01:59]} 22. Rxd5 {[%clk 0:02:09]}  exd5 {[%clk 0:01:58]} 23. Re5 {[%clk 0:01:49]}  Qf6 {[%clk 0:01:28]} 24. Rxd5 {[%clk 0:01:39]}  Qxf3 {[%clk 0:01:25]} 25. Qxf3 {[%clk 0:01:39]} 1-0


[Site "https://www.chess.com"]

[Event "Titled Tuesday Blitz September 27 Early 2022"]
[White "Bharath Subramaniyam H"]
[Black "So, Wesley"]
[WhiteFideId "46634827"]
[BlackFideId "5202213"]
[WhiteElo "2346"]
[BlackElo "2763"]
[Result "1/2-1/2"]
[Round "08"]
[TimeControl "180+1"]
[Date "2022.09.27"]
[WhiteClock "0:01:21"]
[BlackClock "0:01:01"]

1. c4 {[%clk 0:02:59]}  e6 {[%clk 0:02:56]} 2. Nf3 {[%clk 0:02:58]}  d5 {[%clk 0:02:57]} 3. e3 {[%clk 0:02:58]}  Nf6 {[%clk 0:02:57]} 4. b3 {[%clk 0:02:58]}  c5 {[%clk 0:02:56]} 5. Bb2 {[%clk 0:02:57]}  Nc6 {[%clk 0:02:56]} 6. cxd5 {[%clk 0:02:58]}  exd5 {[%clk 0:02:57]} 7. d4 {[%clk 0:02:57]}  cxd4 {[%clk 0:02:56]} 8. Nxd4 {[%clk 0:02:56]}  Bb4+ {[%clk 0:02:56]} 9. Bc3 {[%clk 0:02:56]}  Qb6 {[%clk 0:02:30]} 10. Nxc6 {[%clk 0:02:50]}  bxc6 {[%clk 0:02:31]} 11. Bd3 {[%clk 0:02:45]}  Ne4 {[%clk 0:02:09]} 12. Bxe4 {[%clk 0:02:35]}  dxe4 {[%clk 0:02:09]} 13. O-O {[%clk 0:02:32]}  O-O {[%clk 0:02:08]} 14. Bxb4 {[%clk 0:02:20]}  Qxb4 {[%clk 0:02:08]} 15. Qd2 {[%clk 0:02:19]}  Qe7 {[%clk 0:02:02]} 16. Nc3 {[%clk 0:02:12]}  Rd8 {[%clk 0:01:52]} 17. Qc2 {[%clk 0:02:09]}  Ba6 {[%clk 0:01:49]} 18. Rfd1 {[%clk 0:02:07]}  Bd3 {[%clk 0:01:49]} 19. Qb2 {[%clk 0:02:07]}  Qe5 {[%clk 0:01:45]} 20. Rac1 {[%clk 0:02:02]}  Rd6 {[%clk 0:01:41]} 21. Na4 {[%clk 0:01:50]}  Qh5 {[%clk 0:01:34]} 22. Nc5 {[%clk 0:01:44]}  Rad8 {[%clk 0:01:30]} 23. Rd2 {[%clk 0:01:34]}  h6 {[%clk 0:01:25]} 24. Nb7 {[%clk 0:01:25]}  Rg6 {[%clk 0:01:15]} 25. Nxd8 {[%clk 0:01:19]}  Rxg2+ {[%clk 0:01:00]} 26. Kxg2 {[%clk 0:01:19]}  Qg4+ {[%clk 0:01:00]} 27. Kh1 {[%clk 0:01:19]}  Qf3+ {[%clk 0:01:00]} 28. Kg1 {[%clk 0:01:20]}  Qg4+ {[%clk 0:00:59]} 29. Kh1 {[%clk 0:01:21]}  Qf3+ {[%clk 0:01:00]} 30. Kg1 {[%clk 0:01:21]}  Qg4+ {[%clk 0:01:01]} 31. Kh1 {[%clk 0:01:21]} 1/2-1/2


[Site "https://www.chess.com"]

[Event "Titled Tuesday Blitz September 27 Early 2022"]
[White "Bilych, Olexiy"]
[Black "Maksimenko, Viktor"]
[WhiteFideId "14156504"]
[BlackFideId "13710478"]
[WhiteElo "2157"]
[BlackElo "2269"]
[Result "0-1"]
[Round "08"]
[TimeControl "180+1"]
[Date "2022.09.27"]
[WhiteClock "0:00:11"]
[BlackClock "0:00:15"]

1. e4 {[%clk 0:03:00]}  e5 {[%clk 0:02:47]} 2. Nf3 {[%clk 0:03:01]}  Nc6 {[%clk 0:02:47]} 3. Bb5 {[%clk 0:03:01]}  a6 {[%clk 0:02:46]} 4. Ba4 {[%clk 0:03:01]}  Nf6 {[%clk 0:02:46]} 5. O-O {[%clk 0:03:01]}  b5 {[%clk 0:02:46]} 6. Bb3 {[%clk 0:03:01]}  Bc5 {[%clk 0:02:46]} 7. c3 {[%clk 0:02:57]}  d6 {[%clk 0:02:46]} 8. d4 {[%clk 0:02:58]}  Bb6 {[%clk 0:02:45]} 9. Be3 {[%clk 0:02:58]}  O-O {[%clk 0:02:41]} 10. Nbd2 {[%clk 0:02:58]}  h6 {[%clk 0:02:37]} 11. a4 {[%clk 0:02:57]}  Bb7 {[%clk 0:02:29]} 12. Bc2 {[%clk 0:02:40]}  Ng4 {[%clk 0:02:24]} 13. b4 {[%clk 0:02:08]}  Re8 {[%clk 0:02:11]} 14. Bb3 {[%clk 0:01:52]}  Qe7 {[%clk 0:01:47]} 15. h3 {[%clk 0:01:50]}  Nxe3 {[%clk 0:01:45]} 16. fxe3 {[%clk 0:01:51]}  Rf8 {[%clk 0:01:44]} 17. Qe1 {[%clk 0:01:43]}  Kh7 {[%clk 0:01:40]} 18. Qg3 {[%clk 0:01:40]}  g6 {[%clk 0:01:35]} 19. Kh1 {[%clk 0:01:32]}  Kg7 {[%clk 0:01:34]} 20. Nh4 {[%clk 0:01:30]}  Qg5 {[%clk 0:01:31]} 21. Qf2 {[%clk 0:01:18]}  Rae8 {[%clk 0:01:11]} 22. Ndf3 {[%clk 0:01:13]}  Qe7 {[%clk 0:01:04]} 23. Qg3 {[%clk 0:01:13]}  Kh7 {[%clk 0:01:04]} 24. Nh2 {[%clk 0:01:11]}  Bc8 {[%clk 0:01:01]} 25. Ng4 {[%clk 0:01:01]}  Bxg4 {[%clk 0:00:53]} 26. Qxg4 {[%clk 0:01:02]}  Nd8 {[%clk 0:00:45]} 27. Bxf7 {[%clk 0:00:36]}  Rxf7 {[%clk 0:00:40]} 28. Qxg6+ {[%clk 0:00:34]}  Kh8 {[%clk 0:00:41]} 29. Qxh6+ {[%clk 0:00:35]}  Kg8 {[%clk 0:00:37]} 30. Ng6 {[%clk 0:00:35]}  Rxf1+ {[%clk 0:00:35]} 31. Rxf1 {[%clk 0:00:36]}  Qg7 {[%clk 0:00:36]} 32. Qh5 {[%clk 0:00:31]}  Nf7 {[%clk 0:00:28]} 33. Rf5 {[%clk 0:00:21]}  Re6 {[%clk 0:00:25]} 34. Nh4 {[%clk 0:00:18]}  Rf6 {[%clk 0:00:23]} 35. Qf3 {[%clk 0:00:15]}  Rxf5 {[%clk 0:00:23]} 36. Nxf5 {[%clk 0:00:15]}  Qf6 {[%clk 0:00:22]} 37. a5 {[%clk 0:00:16]}  Ba7 {[%clk 0:00:22]} 38. Qg4+ {[%clk 0:00:16]}  Kf8 {[%clk 0:00:21]} 39. Kh2 {[%clk 0:00:14]}  c6 {[%clk 0:00:16]} 40. h4 {[%clk 0:00:14]}  Bb8 {[%clk 0:00:16]} 41. h5 {[%clk 0:00:13]}  d5 {[%clk 0:00:16]} 42. exd5 {[%clk 0:00:13]}  exd4+ {[%clk 0:00:16]} 43. Kh1 {[%clk 0:00:12]}  dxc3 {[%clk 0:00:17]} 44. Nd4 {[%clk 0:00:11]}  Qf1# {[%clk 0:00:15]} 0-1


[Site "https://www.chess.com"]

[Event "Titled Tuesday Blitz September 27 Early 2022"]
[White "Broca Jimenez, Fernando"]
[Black "Koridze, Lile"]
[WhiteFideId "5104742"]
[BlackFideId "13612514"]
[WhiteElo "2062"]
[BlackElo "2050"]
[Result "0-1"]
[Round "08"]
[TimeControl "180+1"]
[Date "2022.09.27"]
[WhiteClock "0:00:14"]
[BlackClock "0:01:24"]

1. e4 {[%clk 0:03:00]}  c5 {[%clk 0:02:59]} 2. c3 {[%clk 0:02:58]}  Nf6 {[%clk 0:02:59]} 3. e5 {[%clk 0:02:59]}  Nd5 {[%clk 0:02:59]} 4. d4 {[%clk 0:02:59]}  cxd4 {[%clk 0:02:59]} 5. Nf3 {[%clk 0:03:00]}  Nc6 {[%clk 0:02:59]} 6. Bc4 {[%clk 0:02:59]}  Nb6 {[%clk 0:02:59]} 7. Bb3 {[%clk 0:03:00]}  d5 {[%clk 0:02:59]} 8. exd6 {[%clk 0:03:00]}  Qxd6 {[%clk 0:02:59]} 9. Nxd4 {[%clk 0:02:59]}  Nxd4 {[%clk 0:02:55]} 10. cxd4 {[%clk 0:03:00]}  g6 {[%clk 0:02:55]} 11. O-O {[%clk 0:02:53]}  Bg7 {[%clk 0:02:55]} 12. Be3 {[%clk 0:02:53]}  O-O {[%clk 0:02:55]} 13. Nc3 {[%clk 0:02:54]}  a6 {[%clk 0:02:55]} 14. Rc1 {[%clk 0:02:52]}  Bf5 {[%clk 0:02:50]} 15. Qd2 {[%clk 0:02:22]}  Rad8 {[%clk 0:02:35]} 16. Rfd1 {[%clk 0:02:19]}  Rd7 {[%clk 0:02:22]} 17. Bh6 {[%clk 0:02:04]}  Rfd8 {[%clk 0:02:17]} 18. Bxg7 {[%clk 0:02:03]}  Kxg7 {[%clk 0:02:16]} 19. d5 {[%clk 0:01:50]}  e6 {[%clk 0:02:10]} 20. Qe3 {[%clk 0:01:37]}  exd5 {[%clk 0:02:06]} 21. Nxd5 {[%clk 0:01:33]}  Nxd5 {[%clk 0:02:06]} 22. Rxd5 {[%clk 0:01:30]}  Qf6 {[%clk 0:02:06]} 23. Rxd7 {[%clk 0:01:25]}  Rxd7 {[%clk 0:02:06]} 24. Qc3 {[%clk 0:01:07]}  Qxc3 {[%clk 0:02:03]} 25. bxc3 {[%clk 0:01:08]}  Rd2 {[%clk 0:02:02]} 26. Kf1 {[%clk 0:01:06]}  Bd3+ {[%clk 0:02:01]} 27. Kg1 {[%clk 0:01:06]}  b5 {[%clk 0:02:00]} 28. h3 {[%clk 0:01:06]}  Rb2 {[%clk 0:01:59]} 29. g4 {[%clk 0:00:50]}  Bb1 {[%clk 0:01:58]} 30. c4 {[%clk 0:00:48]}  bxc4 {[%clk 0:01:54]} 31. Bxc4 {[%clk 0:00:46]}  a5 {[%clk 0:01:54]} 32. a4 {[%clk 0:00:44]}  Be4 {[%clk 0:01:49]} 33. Bb5 {[%clk 0:00:44]}  Rb3 {[%clk 0:01:46]} 34. h4 {[%clk 0:00:39]}  Bf3 {[%clk 0:01:43]} 35. Bd7 {[%clk 0:00:33]}  Rb7 {[%clk 0:01:37]} 36. Bc6 {[%clk 0:00:32]}  Rc7 {[%clk 0:01:37]} 37. Rc5 {[%clk 0:00:31]}  Rxc6 {[%clk 0:01:37]} 38. Rxa5 {[%clk 0:00:32]}  Rc4 {[%clk 0:01:37]} 39. Kh2 {[%clk 0:00:33]}  Bxg4 {[%clk 0:01:37]} 40. Ra7 {[%clk 0:00:32]}  Rc2 {[%clk 0:01:34]} 41. Kg3 {[%clk 0:00:32]}  Be6 {[%clk 0:01:34]} 42. a5 {[%clk 0:00:31]}  Ra2 {[%clk 0:01:34]} 43. Ra8 {[%clk 0:00:26]}  Bd5 {[%clk 0:01:33]} 44. Ra7 {[%clk 0:00:26]}  Ra4 {[%clk 0:01:28]} 45. a6 {[%clk 0:00:22]}  Bc4 {[%clk 0:01:27]} 46. Rc7 {[%clk 0:00:22]}  Bxa6 {[%clk 0:01:27]} 47. Ra7 {[%clk 0:00:23]}  Bb5 {[%clk 0:01:26]} 48. Rb7 {[%clk 0:00:22]}  Ra3+ {[%clk 0:01:26]} 49. Kh2 {[%clk 0:00:20]}  Bc6 {[%clk 0:01:26]} 50. Rb6 {[%clk 0:00:20]}  Be4 {[%clk 0:01:26]} 51. Rb4 {[%clk 0:00:19]}  Bf5 {[%clk 0:01:26]} 52. Rf4 {[%clk 0:00:17]}  Kf6 {[%clk 0:01:25]} 53. Ra4 {[%clk 0:00:14]}  Rxa4 {[%clk 0:01:24]} 0-1


[Site "https://www.chess.com"]

[Event "Titled Tuesday Blitz September 27 Early 2022"]
[White "Bryakin, Mikhail"]
[Black "Balkum, Alexander"]
[WhiteFideId "4165314"]
[BlackFideId "2005069"]
[WhiteElo "2357"]
[BlackElo "2383"]
[Result "1-0"]
[Round "08"]
[TimeControl "180+1"]
[Date "2022.09.27"]
[WhiteClock "0:01:38"]
[BlackClock "0:00:09"]

1. e4 {[%clk 0:02:55]}  c5 {[%clk 0:02:59]} 2. Nf3 {[%clk 0:02:54]}  Nc6 {[%clk 0:02:59]} 3. c3 {[%clk 0:02:55]}  Nf6 {[%clk 0:02:57]} 4. e5 {[%clk 0:02:54]}  Nd5 {[%clk 0:02:58]} 5. Bc4 {[%clk 0:02:55]}  Nb6 {[%clk 0:02:55]} 6. Bb3 {[%clk 0:02:55]}  d5 {[%clk 0:02:47]} 7. exd6 {[%clk 0:02:52]}  e6 {[%clk 0:02:42]} 8. O-O {[%clk 0:02:52]}  Bxd6 {[%clk 0:02:42]} 9. d4 {[%clk 0:02:53]}  cxd4 {[%clk 0:02:41]} 10. Nxd4 {[%clk 0:02:53]}  Nxd4 {[%clk 0:02:38]} 11. Qxd4 {[%clk 0:02:54]}  O-O {[%clk 0:02:35]} 12. Nd2 {[%clk 0:02:55]}  Be7 {[%clk 0:02:23]} 13. Qe3 {[%clk 0:02:51]}  Nd5 {[%clk 0:02:16]} 14. Qe2 {[%clk 0:02:47]}  b6 {[%clk 0:02:10]} 15. Nf3 {[%clk 0:02:45]}  Bb7 {[%clk 0:02:10]} 16. Rd1 {[%clk 0:02:45]}  Qc7 {[%clk 0:02:07]} 17. Qe5 {[%clk 0:02:39]}  Rac8 {[%clk 0:01:47]} 18. Qxc7 {[%clk 0:02:37]}  Rxc7 {[%clk 0:01:47]} 19. Bg5 {[%clk 0:02:37]}  Bxg5 {[%clk 0:01:23]} 20. Nxg5 {[%clk 0:02:36]}  Rd7 {[%clk 0:01:09]} 21. Nf3 {[%clk 0:02:20]}  Rfd8 {[%clk 0:01:07]} 22. Ne5 {[%clk 0:02:21]}  Rd6 {[%clk 0:01:07]} 23. Nc4 {[%clk 0:02:20]}  R6d7 {[%clk 0:01:06]} 24. Ne5 {[%clk 0:02:20]}  Rd6 {[%clk 0:01:06]} 25. g3 {[%clk 0:02:20]}  Kf8 {[%clk 0:00:49]} 26. Rd4 {[%clk 0:02:19]}  Nf6 {[%clk 0:00:30]} 27. Rad1 {[%clk 0:02:08]}  Rxd4 {[%clk 0:00:29]} 28. Rxd4 {[%clk 0:02:09]}  Rxd4 {[%clk 0:00:29]} 29. cxd4 {[%clk 0:02:10]}  Ke7 {[%clk 0:00:29]} 30. f4 {[%clk 0:02:10]}  Ne4 {[%clk 0:00:23]} 31. Bc2 {[%clk 0:02:09]}  f6 {[%clk 0:00:22]} 32. Ng4 {[%clk 0:02:08]}  h6 {[%clk 0:00:20]} 33. Ne3 {[%clk 0:02:07]}  Nd6 {[%clk 0:00:19]} 34. Bd3 {[%clk 0:02:04]}  Kd7 {[%clk 0:00:16]} 35. Kf2 {[%clk 0:02:04]}  Be4 {[%clk 0:00:16]} 36. Bxe4 {[%clk 0:02:04]}  Nxe4+ {[%clk 0:00:17]} 37. Kf3 {[%clk 0:02:05]}  Nd6 {[%clk 0:00:17]} 38. a4 {[%clk 0:02:03]}  Kc6 {[%clk 0:00:17]} 39. b3 {[%clk 0:02:04]}  a6 {[%clk 0:00:16]} 40. g4 {[%clk 0:02:04]}  b5 {[%clk 0:00:17]} 41. a5 {[%clk 0:01:59]}  b4 {[%clk 0:00:16]} 42. f5 {[%clk 0:01:59]}  Kd7 {[%clk 0:00:13]} 43. Kf4 {[%clk 0:01:58]}  Nb5 {[%clk 0:00:12]} 44. Ke4 {[%clk 0:01:57]}  Nc3+ {[%clk 0:00:10]} 45. Kd3 {[%clk 0:01:58]}  Nb5 {[%clk 0:00:10]} 46. fxe6+ {[%clk 0:01:56]}  Kxe6 {[%clk 0:00:11]} 47. Nc2 {[%clk 0:01:57]}  f5 {[%clk 0:00:06]} 48. gxf5+ {[%clk 0:01:57]}  Kxf5 {[%clk 0:00:07]} 49. Nxb4 {[%clk 0:01:57]}  Nc7 {[%clk 0:00:08]} 50. Kc4 {[%clk 0:01:56]}  Ke6 {[%clk 0:00:08]} 51. Kc5 {[%clk 0:01:57]}  Kd7 {[%clk 0:00:08]} 52. d5 {[%clk 0:01:46]}  g5 {[%clk 0:00:08]} 53. d6 {[%clk 0:01:38]}  Ne6+ {[%clk 0:00:08]} 54. Kd5 {[%clk 0:01:38]}  h5 {[%clk 0:00:08]} 55. Nxa6 {[%clk 0:01:38]}  g4 {[%clk 0:00:08]} 56. Nb8+ {[%clk 0:01:36]}  Kc8 {[%clk 0:00:08]} 57. Kxe6 {[%clk 0:01:37]}  h4 {[%clk 0:00:08]} 58. d7+ {[%clk 0:01:37]}  Kd8 {[%clk 0:00:08]} 59. Nc6+ {[%clk 0:01:37]}  Kc7 {[%clk 0:00:09]} 60. d8=Q+ {[%clk 0:01:38]} 1-0


[Site "https://www.chess.com"]

[Event "Titled Tuesday Blitz September 27 Early 2022"]
[White "Burmakin, Vladimir"]
[Black "Mikhailovsky, Vladimir"]
[WhiteFideId "4105109"]
[BlackFideId "34105414"]
[WhiteElo "2665"]
[BlackElo "2773"]
[Result "1-0"]
[Round "08"]
[TimeControl "180+1"]
[Date "2022.09.27"]
[WhiteClock "0:01:08"]
[BlackClock "0:00:03"]

1. c4 {[%clk 0:03:00]}  b6 {[%clk 0:02:55]} 2. Nf3 {[%clk 0:02:59]}  Bb7 {[%clk 0:02:56]} 3. d4 {[%clk 0:02:58]}  Nf6 {[%clk 0:02:55]} 4. Nc3 {[%clk 0:02:58]}  g6 {[%clk 0:02:55]} 5. e3 {[%clk 0:02:56]}  Ne4 {[%clk 0:02:55]} 6. Nxe4 {[%clk 0:02:55]}  Bxe4 {[%clk 0:02:56]} 7. Bd3 {[%clk 0:02:55]}  Bxd3 {[%clk 0:02:40]} 8. Qxd3 {[%clk 0:02:55]}  Bg7 {[%clk 0:02:41]} 9. e4 {[%clk 0:02:47]}  O-O {[%clk 0:02:40]} 10. O-O {[%clk 0:02:47]}  c5 {[%clk 0:02:37]} 11. d5 {[%clk 0:02:39]}  d6 {[%clk 0:02:15]} 12. Qe2 {[%clk 0:02:39]}  a6 {[%clk 0:02:03]} 13. a4 {[%clk 0:02:30]}  Nd7 {[%clk 0:02:02]} 14. Bf4 {[%clk 0:02:29]}  Ne5 {[%clk 0:01:33]} 15. Nxe5 {[%clk 0:02:16]}  Bxe5 {[%clk 0:01:33]} 16. Bxe5 {[%clk 0:02:15]}  dxe5 {[%clk 0:01:33]} 17. Qe3 {[%clk 0:02:05]}  Qd6 {[%clk 0:01:33]} 18. Qc3 {[%clk 0:01:58]}  Rab8 {[%clk 0:01:31]} 19. f4 {[%clk 0:01:57]}  f6 {[%clk 0:01:19]} 20. fxe5 {[%clk 0:01:56]}  Qxe5 {[%clk 0:01:09]} 21. Qxe5 {[%clk 0:01:56]}  fxe5 {[%clk 0:01:10]} 22. Ra3 {[%clk 0:01:45]}  b5 {[%clk 0:00:51]} 23. Rxf8+ {[%clk 0:01:43]}  Kxf8 {[%clk 0:00:51]} 24. cxb5 {[%clk 0:01:41]}  axb5 {[%clk 0:00:51]} 25. a5 {[%clk 0:01:41]}  b4 {[%clk 0:00:41]} 26. Ra1 {[%clk 0:01:41]}  Ke8 {[%clk 0:00:38]} 27. b3 {[%clk 0:01:38]}  Kd7 {[%clk 0:00:37]} 28. Kf2 {[%clk 0:01:33]}  Kc7 {[%clk 0:00:30]} 29. Ke3 {[%clk 0:01:28]}  Kb7 {[%clk 0:00:22]} 30. a6+ {[%clk 0:01:28]}  Ka7 {[%clk 0:00:22]} 31. Kd3 {[%clk 0:01:25]}  Rf8 {[%clk 0:00:19]} 32. Ra2 {[%clk 0:01:25]}  Rf1 {[%clk 0:00:10]} 33. Kc4 {[%clk 0:01:24]}  Rc1+ {[%clk 0:00:10]} 34. Kb5 {[%clk 0:01:24]}  Rc3 {[%clk 0:00:10]} 35. Rf2 {[%clk 0:01:21]}  c4 {[%clk 0:00:09]} 36. bxc4 {[%clk 0:01:18]}  b3 {[%clk 0:00:08]} 37. Rb2 {[%clk 0:01:17]}  Re3 {[%clk 0:00:05]} 38. c5 {[%clk 0:01:16]}  Rxe4 {[%clk 0:00:05]} 39. Rxb3 {[%clk 0:01:15]}  Rd4 {[%clk 0:00:05]} 40. Kc6 {[%clk 0:01:14]}  e4 {[%clk 0:00:03]} 41. Rb7+ {[%clk 0:01:14]}  Kxa6 {[%clk 0:00:03]} 42. Rxe7 {[%clk 0:01:14]}  Ka5 {[%clk 0:00:03]} 43. d6 {[%clk 0:01:13]}  Kb4 {[%clk 0:00:03]} 44. d7 {[%clk 0:01:13]}  Kc3 {[%clk 0:00:03]} 45. Kc7 {[%clk 0:01:10]}  Kd2 {[%clk 0:00:01]} 46. c6 {[%clk 0:01:10]}  e3 {[%clk 0:00:01]} 47. d8=Q {[%clk 0:01:09]}  Rxd8 {[%clk 0:00:02]} 48. Kxd8 {[%clk 0:01:09]}  e2 {[%clk 0:00:03]} 49. c7 {[%clk 0:01:08]} 1-0


[Site "https://www.chess.com"]

[Event "Titled Tuesday Blitz September 27 Early 2022"]
[White "Cnejev, Vladimir-Alexandru"]
[Black "Fernandez De La Vara, Arnaldo"]
[WhiteFideId "1260898"]
[BlackFideId "3518388"]
[WhiteElo "1983"]
[BlackElo "2387"]
[Result "0-1"]
[Round "08"]
[TimeControl "180+1"]
[Date "2022.09.27"]
[WhiteClock "0:00:19"]
[BlackClock "0:02:27"]

1. e4 {[%clk 0:00:19]}  c5 {[%clk 0:03:00]} 2. Nf3 {[%clk 0:00:19]}  e6 {[%clk 0:03:01]} 3. c3 {[%clk 0:00:19]}  d5 {[%clk 0:03:01]} 4. e5 {[%clk 0:00:18]}  d4 {[%clk 0:02:59]} 5. Bd3 {[%clk 0:00:19]}  Nc6 {[%clk 0:02:59]} 6. O-O {[%clk 0:00:18]}  Nge7 {[%clk 0:03:00]} 7. Re1 {[%clk 0:00:19]}  Ng6 {[%clk 0:03:00]} 8. Be4 {[%clk 0:00:19]}  Ngxe5 {[%clk 0:02:54]} 9. Nxe5 {[%clk 0:00:19]}  Nxe5 {[%clk 0:02:55]} 10. Bxb7 {[%clk 0:00:19]}  Bxb7 {[%clk 0:02:54]} 11. Rxe5 {[%clk 0:00:20]}  Bd6 {[%clk 0:02:49]} 12. Re1 {[%clk 0:00:20]}  Qh4 {[%clk 0:02:44]} 13. h3 {[%clk 0:00:20]}  d3 {[%clk 0:02:38]} 14. Re3 {[%clk 0:00:19]}  c4 {[%clk 0:02:35]} 15. b3 {[%clk 0:00:19]}  O-O {[%clk 0:02:27]} 16. bxc4 {[%clk 0:00:19]}  Qxc4 {[%clk 0:02:27]} 17. Na3 {[%clk 0:00:20]}  Qd5 {[%clk 0:02:28]} 18. Rb1 {[%clk 0:00:19]}  Qxg2# {[%clk 0:02:27]} 0-1


[Site "https://www.chess.com"]